[Event "XXVII RUS-chT Women 2020"]
[Site "Sochi"]
[Date "2020.11.20"]
[Round "2.24"]
[White "Mukhina, Jana"]
[Black "Zavivaeva, Evelina"]
[Result "1-0"]
[ECO "C88"]
[WhiteElo "2012"]
[BlackElo "1589"]
[Annotator "NA"]
[PlyCount "61"]
[EventDate "2020.11.19"]
[EventType "team-tourn"]
[EventCountry "RUS"]
[SourceTitle "playchess.com"]
[Source "ChessBase"]
[SourceQuality "1"]
[TimeControl "40/5400+30:1800+30"]

1. e4 {[%emt 0:00:00]} e5 {[%emt 0:00:00]} 2. Nf3 {[%emt 0:00:00]} Nc6 {[%emt 0:00:00]} 3. Bb5 {[%emt 0:00:00]} a6 {[%emt 0:00:00]} 4. Ba4 {[%emt 0:00:00]} Nf6 $11 {[%emt 0:00:17]} 5. O-O {[%emt 0:00:11]} Be7 {[%emt 0:00:18]} 6. Re1 {[%emt 0:07:36]} b5 {[%emt 0:00:18]} 7. Bb3 {[%emt 0:00:04]} O-O {[%emt 0:00:11]} 8. a4 {[%emt 0:00:34]} Bb7 {[%emt 0:00:22]} 9. Nc3 {[%emt 0:04:31]} b4 {[%emt 0:02:38]} 10. Nd5 {[%emt 0:06:09]} a5 {[%emt 0:07:38]} 11. c3 {[%emt 0:12:45]} Re8 {[%emt 0:02:38]} 12. Nxe7+ {[%emt 0:16:58]} Qxe7 {[%emt 0:05:57]} 13. d4 {[%emt 0:12:11]} bxc3 {[%emt 0:06:18]} 14. bxc3 {[%emt 0:00:34]} exd4 {[%emt 0:01:51]} 15. e5 {[%emt 0:07:25]} Ng4 {[%emt 0:08:29]} 16. cxd4 {[%emt 0:05:30]} Nb4 {[%emt 0:06:37]} 17. Ng5 {[%emt 0:14:06]} Nh6 {[%emt 0:04:15]} 18. Ne4 {[%emt 0:06:25]} Nf5 {[%emt 0:14:29]} 19. Bg5 {[%emt 0:03:38]} Qf8 {[%emt 0:02:28]} 20. Nc5 {[%emt 0:00:21]} Bc6 {[%emt 0:01:13]} 21. Rc1 {[%emt 0:00:17]} d6 {[%emt 0:01:07]} 22. Nd3 {[%emt 0:00:26]} Ra6 {[%emt 0:23:24]} 23. Nxb4 {[%emt 0:00:10]} axb4 {[%emt 0:00:16]} 24. Qd3 {[%emt 0:00:22]} Rb6 {[%emt 0:02:41]} 25. Qxf5 {[%emt 0:00:14]} h6 {[%emt 0:00:39]} 26. Be3 {[%emt 0:00:21]} d5 {[%emt 0:01:03]} 27. a5 {[%emt 0:00:21]} Ra6 {[%emt 0:00:35]} 28. Qd3 {[%emt 0:00:21]} Rea8 {[%emt 0:00:20]} 29. Rc5 {[%emt 0:00:32]} Bb7 {[%emt 0:00:14]} 30. Rxc7 {[%emt 0:00:44]} Bc6 {[%emt 0:00:12]} 31. Rc1 {[%emt 0:00:49]} 1-0

[Event "XXVII RUS-chT Women 2020"]
[Site "Sochi"]
[Date "2020.11.21"]
[Round "3.1"]
[White "Bodnaruk, Anastasia"]
[Black "Pogonina, Natalija"]
[Result "1-0"]
[ECO "C92"]
[WhiteElo "2414"]
[BlackElo "2475"]
[Annotator "RC"]
[PlyCount "175"]
[EventDate "2020.11.19"]
[EventType "team-tourn"]
[EventCountry "RUS"]
[SourceTitle "playchess.com"]
[Source "ChessBase"]
[SourceQuality "1"]
[TimeControl "40/5400+30:1800+30"]

1. e4 {[%emt 0:00:00]} e5 {[%emt 0:00:00]} 2. Nf3 {[%emt 0:00:00]} Nc6 {[%emt 0:00:00]} 3. Bb5 {[%emt 0:00:00]} a6 {[%emt 0:00:00]} 4. Ba4 {[%emt 0:00:00]} Nf6 {[%emt 0:00:00]} 5. O-O {[%emt 0:00:00]} Be7 {[%emt 0:00:15]} 6. Re1 {[%emt 0:00:00]} b5 {[%emt 0:00:10]} 7. Bb3 {[%emt 0:00:00]} d6 {[%emt 0:00:17]} 8. c3 {[%emt 0:00:07]} O-O {[%emt 0:00:16]} 9. h3 {[%emt 0:00:09]} Re8 {[%emt 0:00:45]} 10. d4 {[%emt 0:00:25]} Bb7 {[%emt 0:00:26]} 11. Nbd2 {[%emt 0:00:49]} Bf8 {[%emt 0:00:31]} 12. d5 {[%emt 0:01:44]} Nb8 {[%emt 0:01:15]} 13. Nf1 {[%emt 0:01:23]} Nbd7 {[%emt 0:03:30]} 14. N3h2 {[%emt 0:13:09]} c6 {[%emt 0:09:56]} 15. Ng4 {[%emt 0:08:17]} cxd5 {[%emt 0:19:57]} 16. exd5 {[%emt 0:02:16]} Nxg4 {[%emt 0:00:46]} 17. hxg4 {[%emt 0:00:44]} Be7 {[%emt 0:01:18]} 18. Ng3 {[%emt 0:09:15]} g6 {[%emt 0:01:19]} 19. Be3 {[%emt 0:16:45]} Bg5 {[%emt 0:15:11]} 20. Bxg5 {[%emt 0:05:14]} Qxg5 {[%emt 0:00:13]} 21. Ne4 {[%emt 0:00:08]} Qe7 {[%emt 0:00:14]} 22. a4 {[%emt 0:00:15]} Nc5 {[%emt 0:13:12]} 23. Nxc5 {[%emt 0:12:14]} dxc5 {[%emt 0:00:05]} 24. d6 {[%emt 0:00:07]} Qd7 {[%emt 0:08:11]} 25. axb5 {[%emt 0:00:26]} axb5 {[%emt 0:02:44]} 26. Rxa8 {[%emt 0:00:12]} Bxa8 {[%emt 0:00:29]} 27. Bd5 {[%emt 0:00:38]} Bxd5 {[%emt 0:01:40]} 28. Qxd5 {[%emt 0:00:05]} Re6 {[%emt 0:00:50]} 29. Qxc5 {[%emt 0:11:04]} Rxd6 {[%emt 0:00:51]} 30. Qxe5 {[%emt 0:00:20]} Rd1 {[%emt 0:15:51]} 31. f3 {[%emt 0:02:43]} Qd2 {[%emt 0:04:20]} 32. Rxd1 {[%emt 0:00:22]} Qxd1+ {[%emt 0:00:05]} 33. Kf2 {[%emt 0:02:26]} Qb3 {[%emt 0:00:14]} 34. Qe2 {[%emt 0:00:29]} h6 {[%emt 0:01:17]} 35. Qd2 {[%emt 0:01:32]} Kh7 {[%emt 0:00:08]} 36. Kg3 {[%emt 0:00:33]} Kg8 {[%emt 0:01:04]} 37. Kf2 {[%emt 0:08:29]} Kh7 {[%emt 0:00:20]} 38. Ke2 {[%emt 0:00:40]} Kg8 {[%emt 0:00:37]} 39. Qc1 {[%emt 0:00:28]} Kh7 {[%emt 0:00:34]} 40. Kd2 {[%emt 0:00:00]} Qc4 {[%emt 0:00:00]} 41. b4 {[%emt 0:13:30]} Qd5+ {[%emt 0:05:25]} 42. Ke2 {[%emt 0:03:25]} Qc4+ {[%emt 0:06:32]} 43. Kf2 {[%emt 0:00:06]} Qa2+ {[%emt 0:00:08]} 44. Kg3 {[%emt 0:02:48]} Qe2 {[%emt 0:00:10]} 45. Kh3 {[%emt 0:01:09]} Kg7 {[%emt 0:06:37]} 46. Qg1 {[%emt 0:04:35]} g5 {[%emt 0:04:18]} 47. Qd4+ {[%emt 0:00:43]} Kg8 {[%emt 0:01:04]} 48. Qe4 {[%emt 0:04:39]} Qf1 {[%emt 0:00:38]} 49. Kg3 {[%emt 0:01:20]} Kg7 {[%emt 0:01:16]} 50. Qe3 {[%emt 0:01:25]} Kg8 {[%emt 0:01:45]} 51. Kh2 {[%emt 0:01:16]} Kh7 {[%emt 0:01:47]} 52. g3 {[%emt 0:01:35]} Qd1 {[%emt 0:03:41]} 53. Kg2 {[%emt 0:00:49]} Kg8 {[%emt 0:02:35]} 54. Kf2 {[%emt 0:01:27]} Qc2+ {[%emt 0:00:25]} 55. Ke1 {[%emt 0:00:19]} Qb1+ {[%emt 0:01:12]} 56. Ke2 {[%emt 0:00:13]} Qa2+ {[%emt 0:00:45]} 57. Qd2 {[%emt 0:00:09]} Qe6+ {[%emt 0:00:30]} 58. Kf2 {[%emt 0:00:35]} Qb3 {[%emt 0:00:45]} 59. f4 {[%emt 0:01:12]} gxf4 {[%emt 0:00:21]} 60. gxf4 {[%emt 0:00:09]} Qe6 {[%emt 0:00:23]} 61. Qe2 {[%emt 0:02:45]} Qd7 {[%emt 0:00:38]} 62. Kg3 {[%emt 0:00:24]} Qc6 {[%emt 0:00:25]} 63. Qd3 {[%emt 0:00:43]} Qh1 {[%emt 0:00:36]} 64. f5 {[%emt 0:01:32]} Qg1+ {[%emt 0:00:35]} 65. Kf4 {[%emt 0:00:30]} Qh2+ {[%emt 0:00:28]} 66. Qg3 {[%emt 0:01:15]} Qe2 {[%emt 0:00:24]} 67. Qf3 {[%emt 0:00:40]} Qe1 {[%emt 0:00:43]} 68. Qd3 {[%emt 0:00:37]} Qh4 {[%emt 0:00:29]} 69. Qxb5 {[%emt 0:00:35]} Qf2+ {[%emt 0:00:08]} 70. Ke4 {[%emt 0:00:28]} Qg2+ {[%emt 0:00:12]} 71. Ke3 {[%emt 0:00:34]} Qg3+ {[%emt 0:00:34]} 72. Kd2 {[%emt 0:00:09]} Qxg4 {[%emt 0:00:42]} 73. Qe8+ {[%emt 0:00:07]} Kg7 {[%emt 0:00:04]} 74. Qe5+ {[%emt 0:00:04]} Kh7 {[%emt 0:00:27]} 75. b5 {[%emt 0:00:48]} h5 {[%emt 0:00:13]} 76. Qd5 {[%emt 0:01:23]} Qf4+ {[%emt 0:00:29]} 77. Kd3 {[%emt 0:00:26]} Qg3+ {[%emt 0:00:13]} 78. Kc4 {[%emt 0:00:26]} Qc7+ {[%emt 0:00:32]} 79. Kb3 {[%emt 0:00:38]} h4 {[%emt 0:00:35]} 80. Qe4 {[%emt 0:00:33]} Qg3 {[%emt 0:00:44]} 81. b6 {[%emt 0:00:22]} h3 {[%emt 0:00:17]} 82. f6+ {[%emt 0:00:35]} Kh6 {[%emt 0:00:22]} 83. b7 {[%emt 0:00:30]} h2 {[%emt 0:00:14]} 84. Qe8 {[%emt 0:00:27]} Qg6 {[%emt 0:02:15]} 85. Qh8+ {[%emt 0:00:31]} Qh7 {[%emt 0:00:28]} 86. b8=Q {[%emt 0:00:24]} h1=Q {[%emt 0:00:19]} 87. Qf4+ {[%emt 0:00:29]} Kg6 {[%emt 0:00:09]} 88. Qg4+ {[%emt 0:00:14]} 1-0

[Event "XXVII RUS-chT Women 2020"]
[Site "Sochi"]
[Date "2020.11.21"]
[Round "3.2"]
[White "Girya, Olga"]
[Black "Ovod, Evgenija"]
[Result "1/2-1/2"]
[ECO "D41"]
[WhiteElo "2469"]
[BlackElo "2338"]
[Annotator "ChessBase"]
[PlyCount "81"]
[EventDate "2020.11.19"]
[EventType "team-tourn"]
[EventCountry "RUS"]
[SourceTitle "playchess.com"]
[Source "ChessBase"]
[SourceQuality "1"]
[TimeControl "40/5400+30:1800+30"]

1. d4 {[%emt 0:00:00]} d5 {[%emt 0:00:00]} 2. c4 {[%emt 0:00:00]} e6 {[%emt 0:00:00]} 3. Nf3 {[%emt 0:00:00]} Nf6 {[%emt 0:00:00]} 4. Nc3 {[%emt 0:00:00]} c5 {[%emt 0:00:00]} 5. cxd5 {[%emt 0:00:05]} Nxd5 {[%emt 0:00:00]} 6. e4 {[%emt 0:00:04]} Nxc3 {[%emt 0:00:01]} 7. bxc3 {[%emt 0:00:04]} cxd4 {[%emt 0:00:06]} 8. cxd4 {[%emt 0:00:03]} Bb4+ {[%emt 0:00:04]} 9. Bd2 {[%emt 0:00:03]} Bxd2+ {[%emt 0:00:04]} 10. Qxd2 {[%emt 0:00:08]} O-O {[%emt 0:00:04]} 11. Bc4 {[%emt 0:00:55]} Nd7 {[%emt 0:00:07]} 12. O-O {[%emt 0:00:51]} b6 {[%emt 0:00:06]} 13. Rfe1 {[%emt 0:00:43]} Bb7 {[%emt 0:00:11]} 14. Rad1 {[%emt 0:00:14]} Rc8 {[%emt 0:00:09]} 15. Bb3 {[%emt 0:00:10]} Re8 {[%emt 0:00:07]} 16. h3 {[%emt 0:01:51]} Nf6 {[%emt 0:00:21]} 17. Qf4 {[%emt 0:01:04]} Nh5 {[%emt 0:00:15]} 18. Qe3 {[%emt 0:04:13]} Nf6 {[%emt 0:00:21]} 19. Qf4 {[%emt 0:12:53]} Nh5 {[%emt 0:00:05]} 20. Qe5 {[%emt 0:05:08]} Nf6 {[%emt 0:00:08]} 21. Nh2 {[%emt 0:19:53]} Qc7 {[%emt 0:19:32]} 22. f3 {[%emt 0:01:17]} Red8 {[%emt 0:02:57]} 23. Ng4 {[%emt 0:08:05]} Nxg4 {[%emt 0:29:40]} 24. hxg4 {[%emt 0:00:10]} Qxe5 {[%emt 0:00:04]} 25. dxe5 {[%emt 0:00:05]} Rxd1 {[%emt 0:00:05]} 26. Rxd1 {[%emt 0:00:03]} Bc6 {[%emt 0:00:06]} 27. Kf2 {[%emt 0:07:01]} h6 {[%emt 0:09:31]} 28. Ke3 {[%emt 0:15:27]} Kf8 {[%emt 0:06:55]} 29. f4 {[%emt 0:03:40]} Ke7 {[%emt 0:01:56]} 30. f5 {[%emt 0:01:12]} Bb5 {[%emt 0:00:40]} 31. Rd2 {[%emt 0:06:40]} Bc4 {[%emt 0:11:12]} 32. Rc2 {[%emt 0:01:13]} Ba6 {[%emt 0:00:05]} 33. Rxc8 {[%emt 0:07:51]} Bxc8 {[%emt 0:00:03]} 34. Kf4 {[%emt 0:00:03]} Bb7 {[%emt 0:08:16]} 35. Bc2 {[%emt 0:00:07]} Bc6 {[%emt 0:01:29]} 36. g3 {[%emt 0:00:34]} g5+ {[%emt 0:00:36]} 37. fxg6 {[%emt 0:00:06]} fxg6 {[%emt 0:00:04]} 38. g5 {[%emt 0:00:17]} h5 {[%emt 0:00:23]} 39. Ke3 {[%emt 0:00:40]} Kd7 {[%emt 0:00:29]} 40. Bb3 {[%emt 0:00:00]} Ke7 {[%emt 0:00:00]} 41. Kd4 {[%emt 0:02:22]} 1/2-1/2

[Event "XXVII RUS-chT Women 2020"]
[Site "Sochi"]
[Date "2020.11.21"]
[Round "3.3"]
[White "Styazhkina, Anna"]
[Black "Badelka, Olga"]
[Result "0-1"]
[ECO "B53"]
[WhiteElo "2319"]
[BlackElo "2427"]
[Annotator "NA"]
[PlyCount "70"]
[EventDate "2020.11.19"]
[EventType "team-tourn"]
[EventCountry "RUS"]
[SourceTitle "playchess.com"]
[Source "ChessBase"]
[SourceQuality "1"]
[TimeControl "40/5400+30:1800+30"]

1. e4 {[%emt 0:00:00]} c5 {[%emt 0:00:00]} 2. Nf3 {[%emt 0:00:00]} d6 {[%emt 0:00:00]} 3. d4 {[%emt 0:01:23]} cxd4 {[%emt 0:00:05]} 4. Qxd4 {[%emt 0:01:02]} a6 {[%emt 0:00:29]} 5. c4 {[%emt 0:00:48]} Nc6 {[%emt 0:00:16]} 6. Qd2 {[%emt 0:01:12]} Bg4 {[%emt 0:02:03]} 7. Be2 {[%emt 0:01:08]} g6 {[%emt 0:00:46]} 8. O-O {[%emt 0:04:18]} Bg7 {[%emt 0:00:19]} 9. Nc3 {[%emt 0:00:30]} Nf6 {[%emt 0:02:57]} 10. Rb1 {[%emt 0:05:06]} O-O {[%emt 0:04:39]} 11. b3 {[%emt 0:03:16]} Qa5 {[%emt 0:01:41]} 12. Bb2 {[%emt 0:28:03]} Nd7 {[%emt 0:04:04]} 13. a3 {[%emt 0:03:38]} Rfc8 {[%emt 0:11:41]} 14. h3 {[%emt 0:06:55]} Bxf3 {[%emt 0:00:19]} 15. Bxf3 {[%emt 0:00:07]} Nd4 {[%emt 0:05:51]} 16. Bd1 {[%emt 0:12:12]} b5 {[%emt 0:06:16]} 17. b4 {[%emt 0:00:26]} Qd8 {[%emt 0:00:13]} 18. cxb5 {[%emt 0:00:29]} Nxb5 {[%emt 0:01:28]} 19. Nd5 {[%emt 0:01:03]} Bxb2 {[%emt 0:01:37]} 20. Qxb2 {[%emt 0:03:09]} e6 {[%emt 0:03:50]} 21. a4 {[%emt 0:02:04]} exd5 {[%emt 0:00:46]} 22. axb5 {[%emt 0:00:06]} axb5 {[%emt 0:13:03]} 23. exd5 {[%emt 0:01:41]} Nb6 {[%emt 0:00:12]} 24. Bb3 {[%emt 0:01:17]} Qh4 {[%emt 0:02:26]} 25. f4 {[%emt 0:05:08]} Na4 {[%emt 0:06:54]} 26. Bxa4 {[%emt 0:09:07]} bxa4 {[%emt 0:00:18]} 27. b5 {[%emt 0:00:31]} a3 {[%emt 0:03:15]} 28. Qa2 {[%emt 0:03:01]} Rc3 {[%emt 0:06:40]} 29. b6 {[%emt 0:01:33]} Qg3 {[%emt 0:00:46]} 30. b7 {[%emt 0:03:30]} Rb8 {[%emt 0:00:07]} 31. Kh1 {[%emt 0:01:42]} h5 {[%emt 0:12:52]} 32. Rb6 {[%emt 0:00:54]} Qd3 {[%emt 0:02:00]} 33. Re1 {[%emt 0:00:34]} Rc2 {[%emt 0:01:09]} 34. Qb3 {[%emt 0:00:29]} Qd2 {[%emt 0:00:34]} 35. Qg3 {[%emt 0:00:32]} h4 {[%emt 0:00:30]} 0-1

[Event "XXVII RUS-chT Women 2020"]
[Site "Sochi"]
[Date "2020.11.21"]
[Round "3.4"]
[White "Guseva, Marina"]
[Black "Chernyak, Viktoria"]
[Result "1/2-1/2"]
[ECO "D15"]
[WhiteElo "2352"]
[BlackElo "2325"]
[Annotator "ChessBase"]
[PlyCount "83"]
[EventDate "2020.11.19"]
[EventType "team-tourn"]
[EventCountry "RUS"]
[SourceTitle "playchess.com"]
[Source "ChessBase"]
[SourceQuality "1"]
[TimeControl "40/5400+30:1800+30"]

1. d4 {[%emt 0:00:00]} d5 {[%emt 0:00:00]} 2. c4 {[%emt 0:00:00]} c6 {[%emt 0:00:00]} 3. Nc3 {[%emt 0:00:00]} Nf6 {[%emt 0:00:00]} 4. Nf3 {[%emt 0:00:00]} a6 {[%emt 0:00:47]} 5. e3 {[%emt 0:00:24]} Bg4 {[%emt 0:02:57]} 6. b3 {[%emt 0:01:18]} e6 {[%emt 0:00:44]} 7. Be2 {[%emt 0:02:36]} Bb4 {[%emt 0:03:03]} 8. Bd2 {[%emt 0:00:08]} Nbd7 {[%emt 0:01:22]} 9. O-O {[%emt 0:00:14]} Bd6 {[%emt 0:02:59]} 10. h3 {[%emt 0:06:21]} Bh5 {[%emt 0:01:14]} 11. Qc2 {[%emt 0:13:38]} O-O {[%emt 0:03:57]} 12. Rfe1 {[%emt 0:01:53]} Re8 {[%emt 0:03:10]} 13. Rad1 {[%emt 0:03:53]} Rc8 {[%emt 0:04:17]} 14. e4 {[%emt 0:03:59]} Bg6 {[%emt 0:05:47]} 15. Bd3 {[%emt 0:00:06]} e5 {[%emt 0:06:24]} 16. exd5 {[%emt 0:14:45]} cxd5 {[%emt 0:01:35]} 17. Bxg6 {[%emt 0:00:11]} hxg6 {[%emt 0:00:25]} 18. dxe5 {[%emt 0:00:04]} Nxe5 {[%emt 0:02:12]} 19. Nxe5 {[%emt 0:00:22]} Rxe5 {[%emt 0:18:49]} 20. Rxe5 {[%emt 0:00:08]} Bxe5 {[%emt 0:00:02]} 21. Be1 {[%emt 0:07:13]} d4 {[%emt 0:12:34]} 22. Ne2 {[%emt 0:02:01]} Qe7 {[%emt 0:02:51]} 23. Qd3 {[%emt 0:10:17]} Qa3 {[%emt 0:02:34]} 24. Qb1 {[%emt 0:00:08]} b5 {[%emt 0:02:44]} 25. Nxd4 {[%emt 0:01:30]} bxc4 {[%emt 0:01:01]} 26. bxc4 {[%emt 0:02:10]} Rxc4 {[%emt 0:01:24]} 27. Nf3 {[%emt 0:00:06]} Bf4 {[%emt 0:04:55]} 28. Rd8+ {[%emt 0:02:42]} Kh7 {[%emt 0:00:02]} 29. Qb8 {[%emt 0:05:55]} g5 {[%emt 0:02:21]} 30. Rh8+ {[%emt 0:03:13]} Kg6 {[%emt 0:00:01]} 31. Qb1+ {[%emt 0:00:20]} Ne4 {[%emt 0:01:26]} 32. Re8 {[%emt 0:10:04]} f5 {[%emt 0:02:41]} 33. Qb6+ {[%emt 0:00:46]} Nf6 {[%emt 0:00:24]} 34. Re6 {[%emt 0:03:52]} Qxa2 {[%emt 0:02:31]} 35. g3 {[%emt 0:04:56]} Qa3 {[%emt 0:01:14]} 36. Kg2 {[%emt 0:00:47]} Bc7 {[%emt 0:00:25]} 37. Rxf6+ {[%emt 0:01:40]} gxf6 {[%emt 0:00:20]} 38. Qe6 {[%emt 0:00:05]} Qc5 {[%emt 0:01:58]} 39. Qg8+ {[%emt 0:00:04]} Kh6 {[%emt 0:00:03]} 40. Qh8+ {[%emt 0:00:00]} Kg6 {[%emt 0:00:00]} 41. Qg8+ {[%emt 0:00:28]} Kh6 {[%emt 0:00:05]} 42. Qh8+ {[%emt 0:18:46]} 1/2-1/2

[Event "XXVII RUS-chT Women 2020"]
[Site "Sochi"]
[Date "2020.11.21"]
[Round "3.5"]
[White "Shuvalova, Polina"]
[Black "Vasilevich, Tatjana"]
[Result "1/2-1/2"]
[ECO "B04"]
[WhiteElo "2454"]
[BlackElo "2353"]
[Annotator "RC"]
[PlyCount "81"]
[EventDate "2020.11.19"]
[EventType "team-tourn"]
[EventCountry "RUS"]
[SourceTitle "playchess.com"]
[Source "ChessBase"]
[SourceQuality "1"]
[TimeControl "40/5400+30:1800+30"]

1. e4 {[%emt 0:00:00]} Nf6 {[%emt 0:00:00]} 2. e5 {[%emt 0:00:00]} Nd5 {[%emt 0:00:00]} 3. d4 {[%emt 0:00:03]} d6 {[%emt 0:00:00]} 4. Nf3 {[%emt 0:00:06]} g6 {[%emt 0:00:00]} 5. c4 {[%emt 0:03:18]} Nb6 {[%emt 0:00:11]} 6. exd6 {[%emt 0:01:21]} cxd6 {[%emt 0:00:08]} 7. Nc3 {[%emt 0:01:24]} Bg7 {[%emt 0:00:12]} 8. Be3 {[%emt 0:00:14]} O-O {[%emt 0:00:27]} 9. Rc1 {[%emt 0:00:19]} Nc6 {[%emt 0:00:24]} 10. d5 {[%emt 0:02:33]} Ne5 {[%emt 0:02:52]} 11. Nxe5 {[%emt 0:01:20]} Bxe5 {[%emt 0:00:07]} 12. Bd3 {[%emt 0:03:29]} e6 {[%emt 0:09:16]} 13. O-O {[%emt 0:05:29]} exd5 {[%emt 0:01:56]} 14. cxd5 {[%emt 0:00:31]} Nd7 {[%emt 0:18:22]} 15. Re1 {[%emt 0:07:35]} Nc5 {[%emt 0:19:01]} 16. Bxc5 {[%emt 0:07:24]} Bxc3 {[%emt 0:00:39]} 17. Rxc3 {[%emt 0:02:04]} dxc5 {[%emt 0:00:04]} 18. Rxc5 {[%emt 0:00:14]} b6 {[%emt 0:01:05]} 19. Rc3 {[%emt 0:03:48]} Qxd5 {[%emt 0:00:53]} 20. Be4 {[%emt 0:03:44]} Qxd1 {[%emt 0:00:06]} 21. Rxd1 {[%emt 0:00:02]} Rb8 {[%emt 0:00:30]} 22. Rc7 {[%emt 0:00:11]} a5 {[%emt 0:08:01]} 23. Bd5 {[%emt 0:00:58]} Bf5 {[%emt 0:02:03]} 24. h4 {[%emt 0:07:21]} Kg7 {[%emt 0:13:27]} 25. Re1 {[%emt 0:05:50]} Rbd8 {[%emt 0:00:16]} 26. Bb3 {[%emt 0:03:56]} Rd2 {[%emt 0:09:08]} 27. Ree7 {[%emt 0:01:45]} Rxb2 {[%emt 0:02:44]} 28. Bxf7 {[%emt 0:02:57]} Kf6 {[%emt 0:01:53]} 29. Bb3 {[%emt 0:12:42]} a4 {[%emt 0:01:00]} 30. Bxa4 {[%emt 0:00:20]} Rb1+ {[%emt 0:01:23]} 31. Kh2 {[%emt 0:00:11]} Rb4 {[%emt 0:00:01]} 32. Bb3 {[%emt 0:05:03]} Rxh4+ {[%emt 0:00:06]} 33. Kg1 {[%emt 0:00:22]} h5 {[%emt 0:01:20]} 34. g3 {[%emt 0:05:12]} Re4 {[%emt 0:01:49]} 35. Rxe4 {[%emt 0:04:07]} Bxe4 {[%emt 0:00:02]} 36. Rc4 {[%emt 0:00:32]} Ke5 {[%emt 0:05:57]} 37. f4+ {[%emt 0:03:21]} Kf5 {[%emt 0:00:04]} 38. Rb4 {[%emt 0:04:20]} Rd8 {[%emt 0:01:54]} 39. Rxb6 {[%emt 0:00:43]} Kg4 {[%emt 0:00:18]} 40. Kf2 {[%emt 0:00:00]} Bf5 {[%emt 0:00:00]} 41. Bf7 {[%emt 0:10:02]} 1/2-1/2

[Event "XXVII RUS-chT Women 2020"]
[Site "Sochi"]
[Date "2020.11.21"]
[Round "3.6"]
[White "Gritsayeva, Oksana"]
[Black "Bivol, Alina"]
[Result "1/2-1/2"]
[ECO "A45"]
[WhiteElo "2351"]
[BlackElo "2373"]
[Annotator "NA"]
[PlyCount "85"]
[EventDate "2020.11.19"]
[EventType "team-tourn"]
[EventCountry "RUS"]
[SourceTitle "playchess.com"]
[Source "ChessBase"]
[SourceQuality "1"]
[TimeControl "40/5400+30:1800+30"]

1. d4 {[%emt 0:00:00]} Nf6 {[%emt 0:00:00]} 2. Bf4 {[%emt 0:00:00]} g6 {[%emt 0:00:00]} 3. Nc3 {[%emt 0:00:00]} d5 {[%emt 0:02:34]} 4. e3 {[%emt 0:00:00]} Bg7 {[%emt 0:01:33]} 5. h4 {[%emt 0:00:02]} h5 {[%emt 0:01:02]} 6. Nf3 {[%emt 0:00:06]} Bg4 {[%emt 0:02:10]} 7. Be2 {[%emt 0:00:11]} c6 {[%emt 0:02:36]} 8. Ne5 {[%emt 0:01:26]} Bxe2 {[%emt 0:00:09]} 9. Qxe2 {[%emt 0:00:11]} Nbd7 {[%emt 0:00:08]} 10. O-O-O {[%emt 0:01:11]} Qa5 {[%emt 0:06:12]} 11. Kb1 {[%emt 0:00:41]} Nb6 {[%emt 0:04:20]} 12. e4 {[%emt 0:07:26]} Rc8 $14 {[%emt 0:16:15]} 13. f3 {[%emt 0:08:12]} Qa6 {[%emt 0:08:22]} 14. Qf2 {[%emt 0:07:16]} dxe4 {[%emt 0:09:29]} 15. Nxe4 {[%emt 0:02:38]} Nxe4 {[%emt 0:00:42]} 16. fxe4 {[%emt 0:00:06]} Nc4 {[%emt 0:01:53]} 17. Nxc4 {[%emt 0:04:43]} Qxc4 {[%emt 0:02:51]} 18. g4 {[%emt 0:10:50]} hxg4 {[%emt 0:04:27]} 19. Qg3 {[%emt 0:04:40]} Qe6 {[%emt 0:07:28]} 20. Bg5 {[%emt 0:07:00]} Rd8 {[%emt 0:03:45]} 21. Qe3 {[%emt 0:04:45]} Rh5 {[%emt 0:02:03]} 22. c3 {[%emt 0:01:21]} Bf6 {[%emt 0:04:04]} 23. Rhf1 {[%emt 0:15:26]} Bxg5 {[%emt 0:03:45]} 24. hxg5 {[%emt 0:00:05]} Rd5 {[%emt 0:03:24]} 25. Qf4 {[%emt 0:01:02]} Rd8 {[%emt 0:04:36]} 26. Rde1 {[%emt 0:03:19]} Rh7 {[%emt 0:01:12]} 27. Rg1 {[%emt 0:00:43]} b5 {[%emt 0:01:16]} 28. Rxg4 {[%emt 0:02:44]} b4 {[%emt 0:00:25]} 29. Rg3 {[%emt 0:01:36]} bxc3 {[%emt 0:00:13]} 30. Rxc3 {[%emt 0:00:41]} Rxd4 {[%emt 0:01:12]} 31. Qb8+ {[%emt 0:01:37]} Rd8 {[%emt 0:00:13]} 32. Qxa7 {[%emt 0:00:18]} Rh1 {[%emt 0:01:46]} 33. Rcc1 {[%emt 0:03:10]} Rxe1 {[%emt 0:00:13]} 34. Rxe1 {[%emt 0:00:05]} Qc4 {[%emt 0:00:02]} 35. a3 {[%emt 0:01:38]} Rd2 {[%emt 0:04:41]} 36. Qb8+ {[%emt 0:01:22]} Kd7 {[%emt 0:00:50]} 37. Qb7+ {[%emt 0:00:20]} Ke6 {[%emt 0:00:18]} 38. Qc8+ {[%emt 0:02:44]} Ke5 {[%emt 0:00:12]} 39. Qh8+ {[%emt 0:01:42]} Ke6 {[%emt 0:01:23]} 40. Qc8+ {[%emt 0:00:00]} Ke5 {[%emt 0:00:00]} 41. Qb8+ {[%emt 0:06:07]} Ke6 {[%emt 0:02:44]} 42. Qc7 Qxe4+ 43. Ka1 1/2-1/2

[Event "XXVII RUS-chT Women 2020"]
[Site "Sochi"]
[Date "2020.11.21"]
[Round "3.7"]
[White "Voit, Daria"]
[Black "Tomilova, Elena"]
[Result "1-0"]
[ECO "D11"]
[WhiteElo "2353"]
[BlackElo "2358"]
[Annotator "NA"]
[PlyCount "73"]
[EventDate "2020.11.19"]
[EventType "team-tourn"]
[EventCountry "RUS"]
[SourceTitle "playchess.com"]
[Source "ChessBase"]
[SourceQuality "1"]
[TimeControl "40/5400+30:1800+30"]

1. Nf3 {[%emt 0:00:00]} d5 {[%emt 0:00:00]} 2. d4 {[%emt 0:00:00]} Nf6 {[%emt 0:00:00]} 3. c4 {[%emt 0:00:45]} c6 {[%emt 0:00:00]} 4. e3 {[%emt 0:01:20]} Bg4 {[%emt 0:00:11]} 5. h3 {[%emt 0:00:13]} Bxf3 {[%emt 0:00:08]} 6. Qxf3 {[%emt 0:00:07]} e6 {[%emt 0:00:05]} 7. Bd3 {[%emt 0:01:46]} Bb4+ {[%emt 0:00:21]} 8. Nc3 {[%emt 0:02:09]} O-O {[%emt 0:00:35]} 9. Bd2 {[%emt 0:02:40]} Nbd7 {[%emt 0:00:17]} 10. a3 {[%emt 0:01:49]} Ba5 {[%emt 0:00:30]} 11. cxd5 {[%emt 0:17:40]} cxd5 {[%emt 0:08:40]} 12. O-O {[%emt 0:00:41]} Rc8 $14 {[%emt 0:05:37]} 13. Rfc1 {[%emt 0:07:35]} Re8 {[%emt 0:09:55]} 14. Qd1 {[%emt 0:05:53]} Bxc3 {[%emt 0:10:27]} 15. Bxc3 {[%emt 0:00:54]} Ne4 {[%emt 0:01:26]} 16. Bb4 {[%emt 0:01:39]} Qb6 {[%emt 0:09:21]} 17. Qa4 {[%emt 0:03:56]} Nb8 {[%emt 0:11:08]} 18. Bxe4 {[%emt 0:25:12]} dxe4 {[%emt 0:00:13]} 19. Bc5 {[%emt 0:00:07]} Qc6 {[%emt 0:19:11]} 20. Qxa7 {[%emt 0:00:30]} Nd7 {[%emt 0:00:12]} 21. Bb4 {[%emt 0:00:23]} Qxc1+ {[%emt 0:08:10]} 22. Rxc1 {[%emt 0:00:02]} Rxc1+ {[%emt 0:00:01]} 23. Kh2 {[%emt 0:00:03]} Rc7 {[%emt 0:03:24]} 24. Ba5 {[%emt 0:02:01]} Rc2 {[%emt 0:00:14]} 25. Qxb7 {[%emt 0:00:09]} Nf6 {[%emt 0:00:19]} 26. a4 {[%emt 0:06:44]} Rxf2 {[%emt 0:01:32]} 27. Bc3 {[%emt 0:05:11]} Nd5 {[%emt 0:00:55]} 28. a5 {[%emt 0:03:19]} Nxe3 {[%emt 0:01:31]} 29. Qxe4 {[%emt 0:10:25]} Rxg2+ {[%emt 0:00:34]} 30. Kh1 {[%emt 0:01:08]} Re2 {[%emt 0:09:20]} 31. a6 Nf5 32. Qc6 {[%emt 0:00:32]} Rd8 {[%emt 0:01:01]} 33. a7 {[%emt 0:00:24]} Ng3+ {[%emt 0:00:29]} 34. Kg1 {[%emt 0:00:04]} Rc2 {[%emt 0:00:08]} 35. a8=Q {[%emt 0:01:23]} Ne2+ {[%emt 0:00:19]} 36. Kf1 {[%emt 0:00:02]} Ng3+ {[%emt 0:00:18]} 37. Ke1 {[%emt 0:00:01]} 1-0